[Event "Titled Tuesday Blitz June 6 Early 2023"]
[White "Chuemsakul, Sarocha"]
[Black "Cramling Bellon, Anna"]
[WhiteFideId "6203710"]
[BlackFideId "32009232"]
[WhiteElo "1686"]
[BlackElo "1976"]
[Result "0-1"]
[Round "10"]
[TimeControl "180+2"]
[Date "2023.06.06"]
[WhiteClock "0:00:01"]
[BlackClock "0:00:12"]
[Board "133"]

1. d4 {[%clk 0:03:00]}  Nf6 {[%clk 0:02:58]} 2. c4 {[%clk 0:03:00]}  e6 {[%clk 0:02:58]} 3. Nf3 {[%clk 0:03:00]}  d5 {[%clk 0:02:58]} 4. cxd5 {[%clk 0:02:55]}  exd5 {[%clk 0:02:57]} 5. Nc3 {[%clk 0:02:55]}  c6 {[%clk 0:02:55]} 6. Bg5 {[%clk 0:02:46]}  Be7 {[%clk 0:02:55]} 7. e3 {[%clk 0:02:44]}  Bg4 {[%clk 0:02:53]} 8. Bd3 {[%clk 0:02:25]}  Nbd7 {[%clk 0:02:52]} 9. O-O {[%clk 0:02:25]}  O-O {[%clk 0:02:50]} 10. h3 {[%clk 0:02:25]}  Bh5 {[%clk 0:02:49]} 11. Rc1 {[%clk 0:02:26]}  c5 {[%clk 0:02:45]} 12. b3 {[%clk 0:02:23]}  Rc8 {[%clk 0:02:35]} 13. Be2 {[%clk 0:02:23]}  Bg6 {[%clk 0:02:22]} 14. Bf4 {[%clk 0:02:21]}  cxd4 {[%clk 0:02:22]} 15. Nxd4 {[%clk 0:02:20]}  Ba3 {[%clk 0:02:20]} 16. Qd2 {[%clk 0:02:04]}  Bxc1 {[%clk 0:02:14]} 17. Rxc1 {[%clk 0:02:05]}  Nc5 {[%clk 0:02:08]} 18. f3 {[%clk 0:02:02]}  a6 {[%clk 0:02:05]} 19. g4 {[%clk 0:01:52]}  Re8 {[%clk 0:01:56]} 20. Bf1 {[%clk 0:01:46]}  h5 {[%clk 0:01:48]} 21. Rd1 {[%clk 0:01:40]}  hxg4 {[%clk 0:01:47]} 22. hxg4 {[%clk 0:01:40]}  Ne6 {[%clk 0:01:40]} 23. Bg3 {[%clk 0:01:29]}  Ng5 {[%clk 0:01:18]} 24. Bg2 {[%clk 0:01:23]}  Qe7 {[%clk 0:01:03]} 25. Re1 {[%clk 0:01:15]}  Qb4 {[%clk 0:00:54]} 26. Rc1 {[%clk 0:01:06]}  b5 {[%clk 0:00:31]} 27. Bh4 {[%clk 0:00:30]}  Ne6 {[%clk 0:00:23]} 28. Bxf6 {[%clk 0:00:24]}  gxf6 {[%clk 0:00:23]} 29. Nf5 {[%clk 0:00:23]}  Bxf5 {[%clk 0:00:19]} 30. gxf5 {[%clk 0:00:24]}  d4 {[%clk 0:00:19]} 31. exd4 {[%clk 0:00:19]}  Nxd4 {[%clk 0:00:18]} 32. Qf2 {[%clk 0:00:05]}  Nxf5 {[%clk 0:00:15]} 33. Qc2 {[%clk 0:00:02]}  Ne3 {[%clk 0:00:14]} 34. Qd2 {[%clk 0:00:01]}  Nxg2 {[%clk 0:00:13]} 35. Qxg2+ {[%clk 0:00:01]}  Kf8 {[%clk 0:00:13]} 36. Qh3 {[%clk 0:00:01]}  Rxc3 {[%clk 0:00:12]} 0-1


[Site "https://www.chess.com"]

[Event "Titled Tuesday Blitz June 6 Early 2023"]
[White "Ciuffoletti, Paolo"]
[Black "Todorovic, Bojan"]
[WhiteFideId "807630"]
[BlackFideId "917087"]
[WhiteElo "2143"]
[BlackElo "2266"]
[Result "1-0"]
[Round "10"]
[TimeControl "180+2"]
[Date "2023.06.06"]
[WhiteClock "0:00:50"]
[BlackClock "0:00:27"]
[Board "135"]

1. e4 {[%clk 0:03:00]}  g6 {[%clk 0:02:59]} 2. d4 {[%clk 0:03:00]}  Bg7 {[%clk 0:02:58]} 3. Nc3 {[%clk 0:03:00]}  d6 {[%clk 0:02:57]} 4. f4 {[%clk 0:03:00]}  a6 {[%clk 0:02:57]} 5. Nf3 {[%clk 0:03:00]}  Nd7 {[%clk 0:02:56]} 6. Bd3 {[%clk 0:03:00]}  b5 {[%clk 0:02:56]} 7. e5 {[%clk 0:02:59]}  Bb7 {[%clk 0:02:56]} 8. O-O {[%clk 0:02:55]}  e6 {[%clk 0:02:46]} 9. Ne4 {[%clk 0:02:44]}  Ne7 {[%clk 0:02:21]} 10. exd6 {[%clk 0:02:42]}  Nf5 {[%clk 0:02:21]} 11. dxc7 {[%clk 0:02:33]}  Qxc7 {[%clk 0:02:21]} 12. c3 {[%clk 0:02:32]}  O-O {[%clk 0:02:21]} 13. Ne5 {[%clk 0:02:26]}  Nb6 {[%clk 0:02:10]} 14. Ng5 {[%clk 0:02:16]}  Nd5 {[%clk 0:02:02]} 15. Bxf5 {[%clk 0:02:14]}  exf5 {[%clk 0:02:00]} 16. Qd3 {[%clk 0:02:06]}  Rad8 {[%clk 0:01:50]} 17. Bd2 {[%clk 0:02:01]}  Nxf4 {[%clk 0:01:39]} 18. Bxf4 {[%clk 0:01:54]}  Bxe5 {[%clk 0:01:39]} 19. Qh3 {[%clk 0:01:49]}  f6 {[%clk 0:01:28]} 20. Bxe5 {[%clk 0:01:30]}  fxe5 {[%clk 0:01:27]} 21. Ne6 {[%clk 0:01:29]}  Qd6 {[%clk 0:01:10]} 22. Nxf8 {[%clk 0:01:26]}  Rxf8 {[%clk 0:01:10]} 23. dxe5 {[%clk 0:01:20]}  Qxe5 {[%clk 0:01:08]} 24. Rae1 {[%clk 0:01:19]}  Qc5+ {[%clk 0:01:08]} 25. Kh1 {[%clk 0:01:19]}  f4 {[%clk 0:01:04]} 26. Qe6+ {[%clk 0:01:15]}  Rf7 {[%clk 0:00:46]} 27. Rxf4 {[%clk 0:01:01]}  Bd5 {[%clk 0:00:30]} 28. Qe8+ {[%clk 0:00:53]}  Kg7 {[%clk 0:00:29]} 29. Rxf7+ {[%clk 0:00:53]}  Bxf7 {[%clk 0:00:29]} 30. Qe5+ {[%clk 0:00:50]}  Qxe5 {[%clk 0:00:30]} 31. Rxe5 {[%clk 0:00:50]}  Bxa2 {[%clk 0:00:30]} 32. Re7+ {[%clk 0:00:50]}  Kh6 {[%clk 0:00:27]} 33. Ra7 {[%clk 0:00:50]} 1-0


[Site "https://www.chess.com"]

[Event "Titled Tuesday Blitz June 6 Early 2023"]
[White "Floresvillar Gonzalez, Luis Migu"]
[Black "Abrosimov, Vladimir"]
[WhiteFideId "5100542"]
[BlackFideId "4166892"]
[WhiteElo "2040"]
[BlackElo "2336"]
[Result "0-1"]
[Round "10"]
[TimeControl "180+2"]
[Date "2023.06.06"]
[WhiteClock "0:00:02"]
[BlackClock "0:00:21"]
[Board "137"]

1. e4 {[%clk 0:02:54]}  c5 {[%clk 0:02:52]} 2. d4 {[%clk 0:02:53]}  cxd4 {[%clk 0:02:51]} 3. c3 {[%clk 0:02:54]}  d3 {[%clk 0:02:52]} 4. Bxd3 {[%clk 0:02:52]}  d6 {[%clk 0:02:51]} 5. Nf3 {[%clk 0:02:48]}  Nc6 {[%clk 0:02:51]} 6. O-O {[%clk 0:02:48]}  g6 {[%clk 0:02:52]} 7. Bg5 {[%clk 0:02:47]}  Bg7 {[%clk 0:02:51]} 8. Nbd2 {[%clk 0:02:45]}  Nf6 {[%clk 0:02:50]} 9. Nc4 {[%clk 0:02:45]}  O-O {[%clk 0:02:49]} 10. Qd2 {[%clk 0:02:43]}  b5 {[%clk 0:02:44]} 11. Ne3 {[%clk 0:02:40]}  a6 {[%clk 0:02:44]} 12. Nd5 {[%clk 0:02:35]}  Nxd5 {[%clk 0:02:38]} 13. exd5 {[%clk 0:02:35]}  Ne5 {[%clk 0:02:31]} 14. Nxe5 {[%clk 0:02:34]}  Bxe5 {[%clk 0:02:31]} 15. Rfe1 {[%clk 0:02:20]}  Re8 {[%clk 0:02:12]} 16. Bh6 {[%clk 0:02:12]}  Bb7 {[%clk 0:02:08]} 17. Be4 {[%clk 0:02:07]}  Qc7 {[%clk 0:02:06]} 18. Rad1 {[%clk 0:02:00]}  Rac8 {[%clk 0:02:02]} 19. a3 {[%clk 0:01:58]}  a5 {[%clk 0:02:00]} 20. g3 {[%clk 0:01:58]}  Qb6 {[%clk 0:01:54]} 21. Bg2 {[%clk 0:01:34]}  Ba6 {[%clk 0:01:44]} 22. h4 {[%clk 0:01:14]}  b4 {[%clk 0:01:43]} 23. axb4 {[%clk 0:01:11]}  axb4 {[%clk 0:01:42]} 24. cxb4 {[%clk 0:01:11]}  Rb8 {[%clk 0:01:20]} 25. h5 {[%clk 0:01:08]}  Qxb4 {[%clk 0:01:19]} 26. hxg6 {[%clk 0:01:08]}  hxg6 {[%clk 0:01:17]} 27. f4 {[%clk 0:00:31]}  Bxb2 {[%clk 0:00:51]} 28. Qxb4 {[%clk 0:00:16]}  Rxb4 {[%clk 0:00:52]} 29. Rb1 {[%clk 0:00:10]}  Bd4+ {[%clk 0:00:49]} 30. Kh2 {[%clk 0:00:10]}  Rxb1 {[%clk 0:00:47]} 31. Rxb1 {[%clk 0:00:10]}  Bc5 {[%clk 0:00:47]} 32. Re1 {[%clk 0:00:09]}  f6 {[%clk 0:00:32]} 33. g4 {[%clk 0:00:07]}  Kh7 {[%clk 0:00:28]} 34. g5 {[%clk 0:00:07]}  f5 {[%clk 0:00:29]} 35. Kg3 {[%clk 0:00:03]}  Kg8 {[%clk 0:00:20]} 36. Bf1 {[%clk 0:00:02]}  Kf7 {[%clk 0:00:21]} 0-1


[Site "https://www.chess.com"]

[Event "Titled Tuesday Blitz June 6 Early 2023"]
[White "Blackwhite017"]
[Black "Larina, Maria"]
[BlackFideId "24113182"]
[WhiteElo "2089"]
[BlackElo "1848"]
[Result "1-0"]
[Round "10"]
[TimeControl "180+2"]
[Date "2023.06.06"]
[WhiteClock "0:00:21"]
[BlackClock "0:00:04"]
[Board "139"]

1. e4 {[%clk 0:03:00]}  c6 {[%clk 0:03:00]} 2. Nf3 {[%clk 0:02:59]}  d5 {[%clk 0:03:00]} 3. exd5 {[%clk 0:03:00]}  cxd5 {[%clk 0:03:00]} 4. Ne5 {[%clk 0:03:00]}  a6 {[%clk 0:03:01]} 5. d4 {[%clk 0:02:58]}  Nc6 {[%clk 0:03:01]} 6. c3 {[%clk 0:02:57]}  Nf6 {[%clk 0:02:59]} 7. Bd3 {[%clk 0:02:54]}  g6 {[%clk 0:02:54]} 8. O-O {[%clk 0:02:50]}  Bg7 {[%clk 0:02:55]} 9. Nd2 {[%clk 0:02:47]}  O-O {[%clk 0:02:55]} 10. f4 {[%clk 0:02:47]}  Bf5 {[%clk 0:02:51]} 11. Bxf5 {[%clk 0:02:42]}  gxf5 {[%clk 0:02:52]} 12. Ndf3 {[%clk 0:02:34]}  Ne4 {[%clk 0:02:53]} 13. Nd2 {[%clk 0:02:26]}  f6 {[%clk 0:02:53]} 14. Nxe4 {[%clk 0:02:24]}  dxe4 {[%clk 0:02:30]} 15. Qb3+ {[%clk 0:02:15]}  Kh8 {[%clk 0:02:22]} 16. Nf7+ {[%clk 0:02:10]}  Rxf7 {[%clk 0:02:22]} 17. Qxf7 {[%clk 0:02:11]}  Qd7 {[%clk 0:02:15]} 18. Be3 {[%clk 0:02:04]}  b5 {[%clk 0:02:09]} 19. Rfd1 {[%clk 0:02:00]}  Na5 {[%clk 0:02:08]} 20. b3 {[%clk 0:01:58]}  Rc8 {[%clk 0:02:05]} 21. Rac1 {[%clk 0:01:58]}  Rf8 {[%clk 0:02:01]} 22. Qh5 {[%clk 0:01:53]}  e6 {[%clk 0:01:54]} 23. c4 {[%clk 0:01:44]}  bxc4 {[%clk 0:01:54]} 24. bxc4 {[%clk 0:01:45]}  Qa4 {[%clk 0:01:52]} 25. Qe2 {[%clk 0:01:41]}  Rd8 {[%clk 0:01:45]} 26. d5 {[%clk 0:01:36]}  exd5 {[%clk 0:01:34]} 27. cxd5 {[%clk 0:01:36]}  Qa3 {[%clk 0:01:19]} 28. Bc5 {[%clk 0:01:23]}  Qa4 {[%clk 0:01:04]} 29. Bb6 {[%clk 0:01:10]}  Rb8 {[%clk 0:00:58]} 30. Bc7 {[%clk 0:01:05]}  Rc8 {[%clk 0:00:43]} 31. d6 {[%clk 0:01:05]}  Qd7 {[%clk 0:00:12]} 32. Bxa5 {[%clk 0:01:01]}  Rxc1 {[%clk 0:00:13]} 33. Rxc1 {[%clk 0:01:01]}  Qxd6 {[%clk 0:00:13]} 34. Qd2 {[%clk 0:00:55]}  Qe7 {[%clk 0:00:10]} 35. Rc8+ {[%clk 0:00:51]}  Bf8 {[%clk 0:00:10]} 36. Bb4 {[%clk 0:00:41]}  Qa7+ {[%clk 0:00:08]} 37. Bc5 {[%clk 0:00:27]}  Qxc5+ {[%clk 0:00:04]} 38. Rxc5 {[%clk 0:00:22]}  Bxc5+ {[%clk 0:00:04]} 39. Kf1 {[%clk 0:00:22]}  e3 {[%clk 0:00:04]} 40. Qd7 {[%clk 0:00:21]} 1-0


[Site "https://www.chess.com"]

[Event "Titled Tuesday Blitz June 6 Early 2023"]
[White "White, John S."]
[Black "Winkels, Marcel"]
[WhiteFideId "2502348"]
[BlackFideId "1003887"]
[WhiteElo "2002"]
[BlackElo "1900"]
[Result "0-1"]
[Round "10"]
[TimeControl "180+2"]
[Date "2023.06.06"]
[WhiteClock "0:00:01"]
[BlackClock "0:00:31"]
[Board "140"]

1. e4 {[%clk 0:03:00]}  Nf6 {[%clk 0:03:00]} 2. e5 {[%clk 0:02:59]}  Nd5 {[%clk 0:03:01]} 3. d4 {[%clk 0:02:59]}  d6 {[%clk 0:03:01]} 4. c4 {[%clk 0:02:55]}  Nb6 {[%clk 0:03:00]} 5. Nc3 {[%clk 0:02:51]}  dxe5 {[%clk 0:02:59]} 6. dxe5 {[%clk 0:02:51]}  Qxd1+ {[%clk 0:02:58]} 7. Nxd1 {[%clk 0:02:52]}  Nc6 {[%clk 0:02:56]} 8. Nf3 {[%clk 0:02:48]}  Bg4 {[%clk 0:02:53]} 9. c5 {[%clk 0:02:24]}  Nd5 {[%clk 0:02:46]} 10. Bb5 {[%clk 0:02:12]}  e6 {[%clk 0:02:29]} 11. O-O {[%clk 0:01:43]}  Bxc5 {[%clk 0:02:23]} 12. Bxc6+ {[%clk 0:01:39]}  bxc6 {[%clk 0:02:23]} 13. Nc3 {[%clk 0:01:32]}  O-O {[%clk 0:02:20]} 14. Ne4 {[%clk 0:01:28]}  Be7 {[%clk 0:02:14]} 15. Nfd2 {[%clk 0:01:18]}  Bf5 {[%clk 0:02:00]} 16. b3 {[%clk 0:01:16]}  Bb4 {[%clk 0:01:49]} 17. Rd1 {[%clk 0:00:59]}  Nc3 {[%clk 0:01:47]} 18. Re1 {[%clk 0:00:45]}  Rfd8 {[%clk 0:01:34]} 19. Ng3 {[%clk 0:00:22]}  Bg6 {[%clk 0:01:27]} 20. Nc4 {[%clk 0:00:20]}  Nd5 {[%clk 0:01:20]} 21. Bb2 {[%clk 0:00:20]}  Bxe1 {[%clk 0:01:18]} 22. Rxe1 {[%clk 0:00:19]}  Nb4 {[%clk 0:01:18]} 23. a3 {[%clk 0:00:16]}  Nd3 {[%clk 0:01:18]} 24. Rb1 {[%clk 0:00:16]}  Nxb2 {[%clk 0:01:17]} 25. Rxb2 {[%clk 0:00:17]}  Rd1+ {[%clk 0:01:16]} 26. Nf1 {[%clk 0:00:15]}  Bd3 {[%clk 0:01:15]} 27. Ne3 {[%clk 0:00:16]}  Rd8 {[%clk 0:01:08]} 28. Nxd1 {[%clk 0:00:16]}  Bxf1 {[%clk 0:01:05]} 29. Kxf1 {[%clk 0:00:14]}  Rxd1+ {[%clk 0:01:06]} 30. Ke2 {[%clk 0:00:15]}  Rd5 {[%clk 0:01:06]} 31. f4 {[%clk 0:00:15]}  Kf8 {[%clk 0:00:49]} 32. Rc2 {[%clk 0:00:14]}  c5 {[%clk 0:00:49]} 33. b4 {[%clk 0:00:12]}  cxb4 {[%clk 0:00:47]} 34. axb4 {[%clk 0:00:12]}  Rd7 {[%clk 0:00:46]} 35. Ra2 {[%clk 0:00:11]}  c6 {[%clk 0:00:46]} 36. Ra6 {[%clk 0:00:11]}  Rc7 {[%clk 0:00:45]} 37. Ke3 {[%clk 0:00:10]}  Ke7 {[%clk 0:00:46]} 38. Kd4 {[%clk 0:00:09]}  Kd7 {[%clk 0:00:46]} 39. Kc5 {[%clk 0:00:09]}  f6 {[%clk 0:00:42]} 40. Ra3 {[%clk 0:00:07]}  Rb7 {[%clk 0:00:41]} 41. Rd3+ {[%clk 0:00:06]}  Kc7 {[%clk 0:00:39]} 42. Rd6 {[%clk 0:00:06]}  Rb5+ {[%clk 0:00:39]} 43. Kc4 {[%clk 0:00:05]}  Rd5 {[%clk 0:00:38]} 44. Rxd5 {[%clk 0:00:02]}  cxd5+ {[%clk 0:00:36]} 45. Kc5 {[%clk 0:00:01]}  fxe5 {[%clk 0:00:35]} 46. fxe5 {[%clk 0:00:01]}  a6 {[%clk 0:00:31]} 0-1


[Site "https://www.chess.com"]

[Event "Titled Tuesday Blitz June 6 Early 2023"]
[White "Lisjak, Zlatko"]
[Black "Maluco_do_Natal_00"]
[WhiteFideId "14502186"]
[WhiteElo "1998"]
[BlackElo "2053"]
[Result "0-1"]
[Round "10"]
[TimeControl "180+2"]
[Date "2023.06.06"]
[WhiteClock "0:00:01"]
[BlackClock "0:00:12"]
[Board "143"]

1. d4 {[%clk 0:03:00]}  d5 {[%clk 0:02:58]} 2. Nc3 {[%clk 0:02:59]}  Nf6 {[%clk 0:02:58]} 3. Bf4 {[%clk 0:02:59]}  e6 {[%clk 0:02:53]} 4. e3 {[%clk 0:02:55]}  Bd6 {[%clk 0:02:52]} 5. Nge2 {[%clk 0:02:52]}  a6 {[%clk 0:02:50]} 6. f3 {[%clk 0:02:51]}  b5 {[%clk 0:02:45]} 7. Qd2 {[%clk 0:02:49]}  Bb7 {[%clk 0:02:43]} 8. O-O-O {[%clk 0:02:48]}  Qe7 {[%clk 0:02:42]} 9. g4 {[%clk 0:02:47]}  Bb4 {[%clk 0:02:39]} 10. g5 {[%clk 0:02:27]}  Nh5 {[%clk 0:02:37]} 11. Be5 {[%clk 0:02:27]}  f6 {[%clk 0:02:32]} 12. gxf6 {[%clk 0:02:26]}  gxf6 {[%clk 0:02:32]} 13. Ng3 {[%clk 0:02:12]}  fxe5 {[%clk 0:02:05]} 14. Nxh5 {[%clk 0:02:09]}  Nd7 {[%clk 0:02:01]} 15. Rg1 {[%clk 0:01:51]}  O-O-O {[%clk 0:02:01]} 16. Bh3 {[%clk 0:01:44]}  Rhg8 {[%clk 0:01:56]} 17. Ng3 {[%clk 0:01:22]}  Kb8 {[%clk 0:01:51]} 18. Qd3 {[%clk 0:01:16]}  Rdf8 {[%clk 0:01:30]} 19. Bg4 {[%clk 0:01:09]}  Nf6 {[%clk 0:01:15]} 20. Bh3 {[%clk 0:01:01]}  Bd6 {[%clk 0:01:07]} 21. dxe5 {[%clk 0:00:55]}  Bxe5 {[%clk 0:01:06]} 22. f4 {[%clk 0:00:55]}  Bd6 {[%clk 0:01:03]} 23. Kb1 {[%clk 0:00:49]}  h5 {[%clk 0:01:00]} 24. a3 {[%clk 0:00:33]}  h4 {[%clk 0:00:57]} 25. Nge2 {[%clk 0:00:32]}  e5 {[%clk 0:00:39]} 26. fxe5 {[%clk 0:00:20]}  Bxe5 {[%clk 0:00:39]} 27. Nf4 {[%clk 0:00:20]}  Rxg1 {[%clk 0:00:24]} 28. Rxg1 {[%clk 0:00:19]}  Bxc3 {[%clk 0:00:22]} 29. Qxc3 {[%clk 0:00:17]}  Ne4 {[%clk 0:00:22]} 30. Qd4 {[%clk 0:00:17]}  c5 {[%clk 0:00:20]} 31. Qg7 {[%clk 0:00:12]}  Rf7 {[%clk 0:00:19]} 32. Qg8+ {[%clk 0:00:10]}  Ka7 {[%clk 0:00:19]} 33. Ng6 {[%clk 0:00:08]}  Nd2+ {[%clk 0:00:14]} 34. Ka2 {[%clk 0:00:05]}  Qf6 {[%clk 0:00:12]} 35. Nf4 {[%clk 0:00:01]}  d4 {[%clk 0:00:12]} 0-1


[Site "https://www.chess.com"]

[Event "Titled Tuesday Blitz June 6 Early 2023"]
[White "Martinez Alcantara, Jose Eduardo"]
[Black "Nepomniachtchi, Ian"]
[WhiteFideId "3805662"]
[BlackFideId "4168119"]
[WhiteElo "2711"]
[BlackElo "2781"]
[Result "0-1"]
[Round "11"]
[TimeControl "180+2"]
[Date "2023.06.06"]
[WhiteClock "0:00:06"]
[BlackClock "0:00:25"]
[Board "2"]

1. e4 {[%clk 0:03:00]}  c5 {[%clk 0:03:00]} 2. Nf3 {[%clk 0:03:01]}  e6 {[%clk 0:03:00]} 3. c3 {[%clk 0:03:01]}  d5 {[%clk 0:02:59]} 4. exd5 {[%clk 0:03:02]}  Qxd5 {[%clk 0:02:58]} 5. d4 {[%clk 0:03:03]}  Nf6 {[%clk 0:02:58]} 6. Be2 {[%clk 0:03:02]}  Nc6 {[%clk 0:02:57]} 7. O-O {[%clk 0:03:03]}  cxd4 {[%clk 0:02:57]} 8. cxd4 {[%clk 0:03:02]}  Be7 {[%clk 0:02:57]} 9. Nc3 {[%clk 0:03:03]}  Qd8 {[%clk 0:02:57]} 10. Bc4 {[%clk 0:02:59]}  O-O {[%clk 0:02:54]} 11. a3 {[%clk 0:02:59]}  b6 {[%clk 0:02:44]} 12. d5 {[%clk 0:02:58]}  exd5 {[%clk 0:02:27]} 13. Nxd5 {[%clk 0:02:59]}  Nxd5 {[%clk 0:02:23]} 14. Bxd5 {[%clk 0:02:54]}  Bb7 {[%clk 0:02:23]} 15. Ne5 {[%clk 0:02:40]}  Rc8 {[%clk 0:02:23]} 16. Be3 {[%clk 0:02:17]}  Bf6 {[%clk 0:02:19]} 17. Nxc6 {[%clk 0:02:17]}  Bxc6 {[%clk 0:02:19]} 18. Bxc6 {[%clk 0:02:18]}  Rxc6 {[%clk 0:02:20]} 19. Qa4 {[%clk 0:02:15]}  Qa8 {[%clk 0:02:14]} 20. Rac1 {[%clk 0:02:03]}  Rxc1 {[%clk 0:01:47]} 21. Bxc1 {[%clk 0:02:04]}  Rc8 {[%clk 0:01:40]} 22. b4 {[%clk 0:02:00]}  Qc6 {[%clk 0:01:31]} 23. Qd1 {[%clk 0:01:48]}  Rd8 {[%clk 0:01:21]} 24. Qe2 {[%clk 0:01:40]}  Re8 {[%clk 0:01:20]} 25. Qd3 {[%clk 0:01:35]}  Rd8 {[%clk 0:01:20]} 26. Qe2 {[%clk 0:01:35]}  h6 {[%clk 0:01:20]} 27. g3 {[%clk 0:01:35]}  b5 {[%clk 0:01:19]} 28. Be3 {[%clk 0:01:34]}  a6 {[%clk 0:01:19]} 29. Rc1 {[%clk 0:01:25]}  Qe4 {[%clk 0:01:18]} 30. Rd1 {[%clk 0:01:05]}  Rc8 {[%clk 0:01:10]} 31. a4 {[%clk 0:00:42]}  Qxb4 {[%clk 0:00:56]} 32. axb5 {[%clk 0:00:41]}  axb5 {[%clk 0:00:53]} 33. Qf3 {[%clk 0:00:37]}  Qc4 {[%clk 0:00:49]} 34. Qf5 {[%clk 0:00:29]}  Qc2 {[%clk 0:00:41]} 35. Qf3 {[%clk 0:00:19]}  Qb3 {[%clk 0:00:34]} 36. Rd7 {[%clk 0:00:14]}  b4 {[%clk 0:00:30]} 37. Kg2 {[%clk 0:00:14]}  Qc4 {[%clk 0:00:30]} 38. Rb7 {[%clk 0:00:13]}  b3 {[%clk 0:00:30]} 39. Bxh6 {[%clk 0:00:13]}  b2 {[%clk 0:00:30]} 40. Bf4 {[%clk 0:00:07]}  Qc2 {[%clk 0:00:30]} 41. Qb3 {[%clk 0:00:03]}  Qxb3 {[%clk 0:00:29]} 42. Rxb3 {[%clk 0:00:04]}  Rc1 {[%clk 0:00:29]} 43. Rb8+ {[%clk 0:00:03]}  Kh7 {[%clk 0:00:29]} 44. Rxb2 {[%clk 0:00:04]}  Bxb2 {[%clk 0:00:30]} 45. Bxc1 {[%clk 0:00:04]}  Bxc1 {[%clk 0:00:31]} 46. Kf3 {[%clk 0:00:02]}  Kg6 {[%clk 0:00:31]} 47. Kg4 {[%clk 0:00:02]}  f5+ {[%clk 0:00:30]} 48. Kf3 {[%clk 0:00:02]}  Kf6 {[%clk 0:00:30]} 49. h4 {[%clk 0:00:03]}  Ke5 {[%clk 0:00:31]} 50. Ke2 {[%clk 0:00:02]}  Ke4 {[%clk 0:00:31]} 51. f3+ {[%clk 0:00:03]}  Kd4 {[%clk 0:00:31]} 52. Kf2 {[%clk 0:00:02]}  Ba3 {[%clk 0:00:31]} 53. g4 {[%clk 0:00:02]}  Be7 {[%clk 0:00:24]} 54. Kg3 {[%clk 0:00:01]}  Ke5 {[%clk 0:00:24]} 55. g5 {[%clk 0:00:01]}  Bd8 {[%clk 0:00:21]} 56. f4+ {[%clk 0:00:01]}  Ke4 {[%clk 0:00:21]} 57. h5 {[%clk 0:00:02]}  Bc7 {[%clk 0:00:21]} 58. h6 {[%clk 0:00:02]}  gxh6 {[%clk 0:00:21]} 59. g6 {[%clk 0:00:02]}  Bxf4+ {[%clk 0:00:22]} 60. Kh4 {[%clk 0:00:03]}  Be5 {[%clk 0:00:23]} 61. Kh5 {[%clk 0:00:03]}  Bg7 {[%clk 0:00:24]} 62. Kh4 {[%clk 0:00:04]}  Ke5 {[%clk 0:00:24]} 63. Kh5 {[%clk 0:00:05]}  Kf6 {[%clk 0:00:25]} 64. Kh4 {[%clk 0:00:06]}  Kxg6 {[%clk 0:00:25]} 0-1


[Site "https://www.chess.com"]